lending/lending_fUSD_20250408
["ID","MTS","AMOUNT","RATE_DAILY","PERIOD"]
[357495131,1744089031786,-1429.67,0.00023905,2]
[357495132,1744089031795,-2980.14453691,0.00023905,2]
[357495133,1744089031812,-556.26670477,0.00023905,2]
[357495134,1744089031824,-237.34875832,0.00023905,2]
[357495135,1744089031834,-965.33411502,0.00023905,2]
[357495136,1744089031854,-1302.66754437,0.00023905,2]
[357495139,1744089031890,-1688.99834061,0.00023905,2]
[357495141,1744089031900,-151.0,0.00023905,2]
[357495143,1744089031909,-150.0,0.00024657,2]
[357495145,1744089031920,-600.0,0.00025699,2]
[357495146,1744089031929,-150.0,0.00026027,2]
[357495149,1744089031940,-150.99,0.00026027,2]
[357495151,1744089031950,-234.23,0.00026849,2]
[357495153,1744089031960,-395.684,0.00026905,2]
[357495155,1744089031970,-343.56956436,0.00026905,2]
[357495158,1744089037398,-1120.0,0.00023905,2]
[357495159,1744089037409,-3613.43043564,0.00026905,2]
[357495160,1744089037419,-151.0,0.00026905,2]
[357495161,1744089037434,-1120.0,0.00026905,2]
[357495162,1744089037445,-150.0,0.00027397,2]
[357495163,1744089037455,-150.0,0.00028767,2]
[357495164,1744089037464,-478.24,0.00029366,2]
[357495165,1744089037475,-3957.0,0.00029905,2]
[357495166,1744089037485,-151.0,0.00029905,2]
[357495167,1744089037495,-1120.0,0.00029905,2]
[357495168,1744089037505,-2500.0,0.00030036,4]
[357495169,1744089037515,-150.0,0.00030136,2]
[357495170,1744089037525,-150.0,0.00031506,2]
[357495171,1744089037535,-478.24,0.0003163,2]
[357495172,1744089037545,-200.0,0.00031839,2]
[357495173,1744089037555,-200.0,0.00031868,7]
[357495174,1744089037564,-234.23,0.00032646,2]
[357495175,1744089037574,-286.61,0.00032736,2]
[357495176,1744089037584,-1000.0,0.00032761,2]
[357495177,1744089037594,-250.0,0.00032829,2]
[357495178,1744089037603,-150.0,0.00032876,2]
[357495179,1744089037613,-1290.415,0.00032876,33]
[357495180,1744089037623,-500.0,0.00032904,2]
[357495181,1744089037633,-1228.79437134,0.00032905,2]
[357495182,1744089037668,-2303.12662866,0.00032905,2]
[357495183,1744089037679,-151.0,0.00032905,2]
[357495184,1744089037689,-1120.0,0.00032905,2]
[357495185,1744089037699,-21125.74411505,0.00032996,2]
[357495186,1744089037710,-589.97551441,0.00032996,2]
[357495372,1744089039705,-1735.22175983,0.00032996,2]
[357495374,1744089039716,-449.05861071,0.00032996,2]
[357495376,1744089039726,-581.47,0.0003301,2]
[357495378,1744089039736,-500.0,0.00033699,2]
[357495380,1744089039745,-478.24,0.00033893,2]
[357495381,1744089039754,-62.45203889,0.00034246,2]
[357495384,1744089039765,-87.54796111,0.00034246,2]
[357495385,1744089039774,-155.31,0.00035,2]
[357495387,1744089039783,-150.0,0.00035616,2]
[357495389,1744089039793,-208.3,0.00035671,120]
[357495391,1744089039802,-151.0,0.00035905,2]
[357495393,1744089039812,-1120.0,0.00035905,2]
[357495395,1744089039822,-156.46,0.00036095,2]
[357495397,1744089039831,-478.24,0.00036157,2]
[357495399,1744089039840,-1000.0,0.00036856,2]
[357495401,1744089039849,-150.0,0.00036986,2]
[357495403,1744089039859,-46332.0,0.00038,2]
[357495405,1744089039868,-785.62,0.00038027,2]
[357495407,1744089039877,-2500.0,0.00038246,2]
[357495409,1744089039887,-1000.0,0.00038256,2]
[357495411,1744089039897,-216.99307618,0.00038256,11]
[357495413,1744089039906,-177.14784097,0.00038256,2]
[357495415,1744089039915,-211.02884222,0.00038256,2]
[357495416,1744089039924,-445.0,0.00038329,2]
[357495418,1744089039934,-348.14,0.00038329,2]
[357495420,1744089039945,-348.14,0.00038329,2]
[357495422,1744089039955,-348.14,0.00038329,2]
[357495424,1744089039968,-348.14,0.00038329,2]
[357495426,1744089039978,-826.34,0.00038329,2]
[357495428,1744089039987,-3815.47479093,0.00038336,3]
[357495430,1744089039996,-1271.82493031,0.00038346,3]
[357495432,1744089040005,-25436.4986062,0.00038346,3]
[357495434,1744089040015,-101318.85545779,0.00038346,3]
[357495435,1744089040124,-0.02993402,0.00038346,3]
[357495686,1744089042632,-23973.95721219,0.00038346,3]
[357495738,1744089043233,-552.86475445,0.00038346,3]
[357495742,1744089043257,-797.70304762,0.00038346,3]
[357495965,1744089045484,-10471.784483,0.00038346,3]
[357496000,1744089045830,-928.28656827,0.00038346,3]
[357497212,1744089929314,16480.0,0.0003,30]
[357497215,1744090077446,46015.9666387,0.00015,2]
[357497223,1744090142211,-157.98384103,0.00015,2]
[357497224,1744090150331,-6925.0838638,0.00015,2]
[357497233,1744090231541,-628.42,0.00015,2]
[357497235,1744090231555,-45.57503837,0.00015,2]
[357497236,1744090231566,-237.81580301,0.000153,2]
[357497237,1744090231576,-338.3043252,0.000154,2]
[357497238,1744090231586,-262.429949,0.00015919,2]
[357497239,1744090231596,-300.0,0.00015999,2]
[357497240,1744090231606,-26210.97238342,0.00016,2]
[357497241,1744090231616,-151.28,0.00016732,2]
[357497242,1744090231626,-420.0,0.00017492,2]
[357497243,1744090231636,-237.81580299,0.000176,2]
[357497244,1744090231646,-680.13125246,0.00018,2]
[357497245,1744090231656,-250.0,0.00019,2]
[357497246,1744090231666,-587.0,0.00019125,2]
[357497247,1744090231675,-173.26356155,0.000199,2]
[357497248,1744090231685,-237.81580299,0.000199,2]
[357497249,1744090231695,-2500.0,0.000199,2]
[357497250,1744090231705,-2500.0,0.000199,2]
[357497251,1744090231714,-514.0,0.0001997,2]
[357497252,1744090231724,-16636.68125415,0.00019999,2]
[357497253,1744090231734,-19768.83911145,0.0002,2]
[357497254,1744090231747,-2208.97184433,0.0002,2]
[357497255,1744090231759,-84059.97376387,0.0002,2]
[357497256,1744090231784,-479.35,0.0002,2]
[357497257,1744090231797,-1301.36397506,0.0002,2]
[357497258,1744090231809,-950.26546194,0.0002,2]
[357497259,1744090231821,-1266.60175907,0.0002,2]
[357497260,1744090231835,-16025.93768507,0.0002,2]
[357497261,1744090231847,-3056.0375105,0.0002,2]
[357497262,1744090231859,-4103.67607172,0.0002,2]
[357497263,1744090231885,-19325.63284038,0.0002,2]
[357497264,1744090231897,-413.21193929,0.0002,2]
[357497265,1744090231909,-7933.5579185,0.0002,2]
[357497266,1744090231920,-756.30818086,0.0002,2]
[357497267,1744090231940,-1394.80815953,0.0002,2]
[357497268,1744090231951,-6530.04607583,0.0002,2]
[357497269,1744090231963,-1139.681725,0.0002,2]
[357497272,1744090231986,-5622.03985906,0.0002,2]
[357497274,1744090231998,-580.09410336,0.0002,2]
[357497453,1744090237662,-2125.0,0.0002,2]
[357497454,1744090237675,-925.1,0.0002,2]
[357497455,1744090237686,-1029.578,0.0002,2]
[357497456,1744090237709,-1374.5550006,0.0002,2]
[357497457,1744090237765,-322.45748182,0.0002,2]
[357497458,1744090237777,-614.6374616,0.0002,2]
[357497459,1744090237788,-545098.73416004,0.0002,2]
[357497460,1744090237810,-502.6796132,0.0002,2]
[357497461,1744090237839,-498.014838,0.0002,2]
[357497462,1744090237858,-607.500001,0.0002,2]
[357497463,1744090237875,-736.57390145,0.0002,2]
[357497464,1744090237888,-1026.92935832,0.0002,2]
[357497465,1744090237899,-368.47889,0.0002,2]
[357497466,1744090237910,-680.891175,0.0002,2]
[357497468,1744090237922,-528.69395831,0.0002,2]
[357497471,1744090237934,-1085.09011866,0.0002,2]
[357497618,1744090239701,-2884.84977065,0.0002,2]
[357497620,1744090239712,-2451.1127707,0.0002,2]
[357497622,1744090239724,-830.4556262,0.0002,2]
[357497624,1744090239735,-7901.67657273,0.0002,2]
[357497627,1744090239757,-2335.29685159,0.0002,2]
[357497634,1744090239815,-3150.11392817,0.0002,2]
[357497636,1744090239826,-1034.6788,0.0002,2]
[357497648,1744090239936,-2039.96847711,0.0002,2]
[357497651,1744090239948,-5765.18510963,0.0002,2]
[357497653,1744090239959,-4821.6798791,0.0002,2]
[357497655,1744090239971,-308.94361421,0.0002,2]
[357497659,1744090239999,-129676.8539732,0.0002,2]
[357497668,1744090240080,-1025.06710056,0.0002,2]
[357497670,1744090240092,-234941.805,0.0002,2]
[357497674,1744090240119,-537.74365054,0.0002,2]
[357497678,1744090240149,-635.0,0.0002,2]
[357497692,1744090240286,-981.89589485,0.0002,2]
[357498038,1744090244010,-6171.0,0.0002,2]
[357498041,1744090244029,-3150.73353402,0.0002,2]
[357498046,1744090244063,-8436.6,0.0002,2]
[357498107,1744090244677,-701.20019834,0.0002,2]
[357498212,1744090245696,-380.13699576,0.0002,2]
[357498235,1744090245923,-304.59809203,0.0002,2]
[357498242,1744090245988,-3564.92137503,0.0002,2]
[357499884,1744090562502,1000.0,0.00032,120]
[357499885,1744090612325,1000.0,0.00033,120]
[357499898,1744091258767,500.0,0.00033,120]
[357499905,1744091431750,-370.578436,0.00015919,2]
[357499906,1744091431761,-250.0,0.00017599,2]
[357499907,1744091431771,-300.0,0.00018999,2]
[357499908,1744091431781,-12746.79105336,0.00019,2]
[357499909,1744091431794,-4167.12112149,0.00019,2]
[357499910,1744091431831,-453.51,0.00019,2]
[357499911,1744091431843,-978.02127164,0.00019,2]
[357499912,1744091431855,-1962.10248467,0.00019,2]
[357499913,1744091431966,-6481.07134811,0.00019,2]
[357499914,1744091431976,-250.0,0.00019,2]
[357499915,1744091431986,-1290.415,0.000196,2]
[357499916,1744091431995,-250.0,0.0001975,2]
[357499917,1744091432005,-164.09889174,0.000199,2]
[357499918,1744091432014,-278.11297555,0.000199,2]
[357499919,1744091432026,-298.86,0.000199,2]
[357499920,1744091432038,-2995.11799,0.000199,2]
[357499921,1744091432055,-1788.86510124,0.000199,2]
[357499922,1744091432065,-164.1428,0.000199,2]
[357499923,1744091432075,-198.21225454,0.000199,2]
[357499924,1744091432085,-1743.40992475,0.000199,2]
[357499936,1744091437851,-56.49007525,0.000199,2]
[357499937,1744091437862,-150.8020061,0.000199,2]
[357499938,1744091437872,-182.30993347,0.000199,2]
[357499939,1744091437882,-305.25297986,0.00019973,2]
[357499940,1744091437892,-396.11337927,0.00019973,2]
[357499941,1744091437902,-152.42514032,0.00019973,2]
[357499942,1744091437913,-500.0,0.00019973,2]
[357499943,1744091437923,-503.96069253,0.00019973,2]
[357499944,1744091437933,-362.70993245,0.00019973,2]
[357499945,1744091437943,-478.31365014,0.00019973,2]
[357499946,1744091437953,-377.90996779,0.00019973,2]
[357499947,1744091437964,-502.93101652,0.00019973,2]
[357499948,1744091437975,-294.9994841,0.0001999,2]
[357499949,1744091437986,-540834.51590224,0.0002,2]
[357500158,1744091440280,-6662.34855108,0.000199,2]
[357500160,1744091440290,-4581592.41740901,0.0002,2]
[357500194,1744091440624,-251.64342234,0.0002,2]
[357500484,1744091443605,-127647.53803801,0.0002,2]
[357500492,1744091443679,5000.0,0.00033,120]
[357501347,1744091480301,1245.24479125,0.00025,30]
[357501356,1744091856579,5000.0,0.00033,120]
[357501357,1744091929671,7475.65238541,0.00033,120]
[357501358,1744091941852,7000.0,0.00033,120]
[357501359,1744091942884,408.91288674,0.00033,120]
[357501364,1744092291831,505.0,0.0003,30]
[357501383,1744092631953,-171.19,0.00017138,2]
[357501384,1744092631963,-1032.332,0.000196,2]
[357501385,1744092631973,-139.50300153,0.00019644,2]
[357501386,1744092631984,-18.49699847,0.00019644,2]
[357501387,1744092631994,-282.0,0.00019644,2]
[357501388,1744092632003,-865.76582794,0.00019783,2]
[357501389,1744092632014,-155.91417206,0.00019783,2]
[357501390,1744092632024,-190.74351023,0.000199,2]
[357501391,1744092632033,-157.6101,0.000199,2]
[357501392,1744092632044,-282.54081556,0.000199,2]
[357501393,1744092632053,-802.17169963,0.000199,2]
[357501394,1744092632062,-1183.34658561,0.000199,2]
[357501395,1744092632075,-4900.27111439,0.000199,2]
[357501396,1744092632084,-2268.83642802,0.000199,2]
[357501397,1744092632094,-150.8020061,0.000199,2]
[357501398,1744092632103,-4441.56570072,0.000199,2]
[357501399,1744092632113,-3786.01851026,0.000199,2]
[357501400,1744092632123,-210.57292899,0.000199,2]
[357501401,1744092632132,-458.09270849,0.00019973,2]
[357501402,1744092632142,-500.0,0.00019973,2]
[357501403,1744092632152,-506.06959526,0.00019973,2]
[357501404,1744092632161,-396.11337927,0.00019973,2]
[357501406,1744092632328,-305.25297986,0.00019973,2]
[357501411,1744092632370,-478.31365014,0.00019973,2]
[357501413,1744092632380,-377.90996779,0.00019973,2]
[357501415,1744092632390,-500.0,0.00019973,2]
[357501417,1744092632399,-294.9994841,0.0001999,2]
[357501419,1744092632409,-228.67697072,0.00019999,2]
[357501421,1744092632419,-252986.80027133,0.0002,2]
[357501423,1744092632431,-180908.76746579,0.0002,2]
[357501426,1744092632443,-31763.5,0.0002,2]
[357501428,1744092632458,-64109.21781741,0.0002,2]
[357501430,1744092632471,-25224.04640091,0.0002,2]
[357501433,1744092632486,-5000.00297171,0.0002,2]
[357501435,1744092632506,-970.99304133,0.0002,2]
[357501438,1744092632518,-39816.91549807,0.0002,2]
[357501440,1744092632530,-927.61514,0.0002,2]
[357501451,1744092632630,-312.5,0.0002,2]
[357501453,1744092632642,-718.889993,0.0002,2]
[357501455,1744092632654,-1056.1130959,0.0002,2]
[357501457,1744092632666,-610.44814184,0.0002,2]
[357501460,1744092632686,-562.5,0.0002,2]
[357501462,1744092632698,-11477.56866556,0.0002,2]
[357501465,1744092632713,-199000.02723381,0.0002,2]
[357501467,1744092632724,-1073.90425003,0.0002,2]
[357501470,1744092632740,-948.9,0.0002,2]
[357501472,1744092632752,-1713.08880524,0.0002,2]
[357501474,1744092632763,-365.19994533,0.0002,2]
[357501692,1744092638011,-11568.6154122,0.0002,2]
[357501693,1744092638023,-4770.83653177,0.0002,2]
[357501694,1744092638035,-3600.0,0.0002,2]
[357501695,1744092638047,-359.28,0.0002,2]
[357501696,1744092638059,-540.30586189,0.0002,2]
[357501697,1744092638127,-4304.21033686,0.0002,2]
[357501698,1744092638194,-2066.3600509,0.0002,2]
[357501699,1744092638206,-1235.0,0.0002,2]
[357501700,1744092638218,-3211.91999948,0.0002,2]
[357501701,1744092638230,-1330.39866426,0.0002,2]
[357501702,1744092638268,-3997.606726,0.0002,2]
[357501703,1744092638286,-983.76745006,0.0002,2]
[357501704,1744092638300,-278.35824588,0.0002,2]
[357501705,1744092638318,-1234.11800617,0.0002,2]
[357501706,1744092638335,-375.375,0.0002,2]
[357501707,1744092638349,-226201.72814551,0.0002,2]
[357501708,1744092638363,-1378.62714229,0.0002,2]
[357501709,1744092638376,-1144.63046961,0.0002,2]
[357501710,1744092638389,-2559.33589369,0.0002,2]
[357501711,1744092638403,-4850.43578301,0.0002,2]
[357501712,1744092638429,-545098.73416004,0.0002,2]
[357501713,1744092638442,-16322.12664002,0.0002,2]
[357501714,1744092638455,-689.32368187,0.0002,2]
[357501715,1744092638469,-358.33485164,0.0002,2]
[357501716,1744092638497,-12000.0,0.0002,2]
[357501717,1744092638518,-50897.56208084,0.0002,2]
[357501871,1744092640307,-3284.44,0.0002,2]
[357501872,1744092640360,-3035.4239461,0.0002,2]
[357501876,1744092640454,-1127.84130903,0.0002,2]
[357501885,1744092640543,-600.0,0.0002,2]
[357502216,1744092643766,-50770.71947858,0.0002,2]
[357502239,1744092644149,-2363.49376483,0.0002,2]
[357502241,1744092644162,-23352.25469246,0.0002,2]
[357502244,1744092644175,-383.99438252,0.0002,2]
[357502249,1744092644221,-417.51520001,0.0002,2]
[357502251,1744092644233,-858.20067413,0.0002,2]
[357502253,1744092644245,-401.0,0.0002,2]
[357502259,1744092644291,-1190.1294157,0.0002,2]
[357502261,1744092644302,-7216.64268312,0.0002,2]
[357502267,1744092644355,-31276.4290682,0.0002,2]
[357502269,1744092644368,-774.9366018,0.0002,2]
[357502460,1744092646151,-5510.1542467,0.0002,2]
[357502462,1744092646163,-500.0,0.0002,2]
[357502468,1744092646213,-950.3560902,0.0002,2]
[357502476,1744092646281,-10774.72186403,0.0002,2]
[357502483,1744092646343,-348.95445286,0.0002,2]
[357502490,1744092646407,-279.0414,0.0002,2]
[357502958,1744093111572,-150.0,0.00019382,2]
[357502959,1744093111596,-1027.2,0.0001948,2]
[357502960,1744093111621,-825.865,0.000196,2]
[357502961,1744093111968,-8314.38626137,0.0001984,2]
[357502962,1744093111993,-2041.9527852,0.000199,2]
[357502963,1744093112016,-152.42514032,0.00019973,2]
[357502964,1744093112040,-502.93101652,0.00019973,2]
[357502965,1744093112065,-286985.23979659,0.0002,2]
[357502990,1744093681374,-201.42906077,0.00015,2]
[357502996,1744093726354,197.1645,0.00013699,2]
[357503079,1744093779184,150.0,0.00013699,2]
[357503080,1744093787711,-7356.54981238,0.00015,2]
[357503081,1744093787747,-7356.54981238,0.00015,2]
[357503082,1744093787783,-7356.54981238,0.00015,2]
[357503083,1744093787826,-7356.54981238,0.00015,2]
[357503084,1744093787878,-7356.54981238,0.00015,2]
[357503085,1744093787933,-7356.54981238,0.00015,2]
[357503086,1744093787970,-7356.54981238,0.00015,2]
[357503087,1744093788006,-7356.54981238,0.00015,2]
[357503088,1744093788046,-7356.54981238,0.00015,2]
[357503089,1744093788276,-7356.54981238,0.00015,2]
[357503090,1744093788418,-7356.54981238,0.00015,2]
[357503091,1744093788456,-1271.25466267,0.00015,2]
[357503092,1744093788497,-7356.54981238,0.00015,2]
[357503093,1744093788549,-7356.54981238,0.00015,2]
[357503094,1744093788649,-150.99,0.00015,2]
[357503112,1744093832154,-300.0,0.00014999,2]
[357503113,1744093832164,-985.97105457,0.00015,2]
[357503114,1744093832176,-967.09022094,0.00015,2]
[357503115,1744093832188,-481.85580749,0.00015,2]
[357503116,1744093832271,-1166.6660776,0.00015,2]
[357503117,1744093832290,-7946.0,0.00015,2]
[357503118,1744093832301,-3180.4513027,0.00015,2]
[357503119,1744093832370,-3576.10273858,0.00015,2]
[357503120,1744093832382,-585.30398229,0.00015,2]
[357503121,1744093832393,-839.57152533,0.00015,2]
[357503122,1744093832404,-674.38200013,0.00015,2]
[357503123,1744093832415,-1124.49855846,0.00015,2]
[357503128,1744093832572,-1993.03746763,0.00015,2]
[357503136,1744093838203,-55763.14505751,0.00015,2]
[357503137,1744093838214,-380.67372491,0.00015,2]
[357503138,1744093838364,-7056.16404413,0.00015,2]
[357503139,1744093838457,-743.08722464,0.00015,2]
[357503140,1744093838554,-118573.83150609,0.00015,2]
[357503143,1744093838565,-3407.41665927,0.00016316,2]
[357503144,1744093838575,-420.0,0.00016416,2]
[357503145,1744093838585,-250.0,0.000165,2]
[357503146,1744093838595,-3407.41665921,0.00016714,2]
[357503147,1744093838605,-171.19,0.00016926,2]
[357503148,1744093838615,-3407.41665921,0.00017112,2]
[357503149,1744093838626,-3407.41665921,0.00017511,2]
[357503150,1744093838637,-250.0,0.00017773,2]
[357503151,1744093838647,-3407.41665921,0.00017909,2]
[357503153,1744093838657,-587.0,0.00017966,2]
[357503155,1744093838669,-250.0,0.00018278,2]
[357503157,1744093838679,-3407.41665921,0.00018307,2]
[357503159,1744093838691,-250.0,0.00018619,2]
[357503161,1744093838701,-3407.41665921,0.00018705,2]
[357503163,1744093838711,-250.0,0.00019,2]
[357503165,1744093838722,-3407.41665921,0.00019104,2]
[357503167,1744093838733,-3407.41665921,0.00019502,2]
[357503169,1744093838743,-718.65,0.00019529,2]
[357503170,1744093838753,-505.0,0.00019663,2]
[357503172,1744093838763,-200.0,0.00019839,2]
[357503174,1744093838773,-200.0,0.0001984,2]
[357503176,1744093838789,-163.49443734,0.000199,2]
[357503178,1744093838799,-18377.57506653,0.000199,2]
[357503180,1744093838810,-226.03265244,0.000199,2]
[357503182,1744093838820,-3407.41665921,0.000199,2]
[357503184,1744093838830,-2961.04380048,0.000199,2]
[357503186,1744093838841,-150.80200609,0.000199,2]
[357503188,1744093838852,-995.0042068,0.000199,2]
[357503190,1744093838862,-503.96069253,0.00019973,2]
[357503192,1744093838872,-197.66660026,0.00019973,2]
[357503194,1744093838883,-362.70993245,0.00019973,2]
[357503196,1744093838892,-5928.11691247,0.0001999,2]
[357503198,1744093838902,-358532.4897544,0.0002,2]
[357503357,1744093840499,-5210.24625485,0.0002,2]
[357503360,1744093840512,-4121.0976,0.0002,2]
[357503369,1744093840612,-6667.43856425,0.0002,2]
[357503618,1744093843463,-19874.929245,0.0002,2]
[357503825,1744093846470,-2089.56318013,0.0002,2]
[357503826,1744093846485,-6377.7564884,0.0002,2]
[357503827,1744093846573,-544.54773275,0.0002,2]
[357503863,1744094100279,1764.82688767,0.00014,2]
[357503883,1744094617784,200.0,0.00013887,2]
[357503884,1744094618376,200.0,0.00013888,2]
[357503885,1744094707653,1600.0,7.945e-05,2]
[357503886,1744094707675,2000.0,7.945e-05,2]
[357503887,1744094707697,2000.0,7.945e-05,2]
[357503888,1744094707718,2000.0,7.945e-05,2]
[357503889,1744094707740,1859.867061,7.945e-05,2]
[357504129,1744095032330,-157.91,0.00015165,2]
[357504130,1744095032339,-500.0,0.00017014,2]
[357504131,1744095032350,-42.09,0.000176,2]
[357504132,1744095032384,-207.91,0.000176,2]
[357504133,1744095032394,-975.84,0.00017705,2]
[357504134,1744095032403,-350.5608601,0.00018668,2]
[357504135,1744095032416,-149.4391399,0.00018668,2]
[357504136,1744095032426,-150.99,0.00018722,2]
[357504137,1744095032436,-102.48457423,0.00018751,2]
[357504138,1744095032569,-616.16542577,0.00018751,2]
[357504139,1744095032579,-878.26,0.00018823,2]
[357504140,1744095032588,-395.5,0.00018867,2]
[357504141,1744095032597,-354.21,0.000189,2]
[357504142,1744095032607,-3003.90320754,0.00019,2]
[357504143,1744095032616,-250.0,0.00019,2]
[357504144,1744095032625,-150.0,0.00019023,2]
[357504145,1744095032635,-348.14,0.00019078,2]
[357504146,1744095032644,-200.1,0.00019086,2]
[357504147,1744095032653,-348.14,0.00019178,2]
[357504148,1744095032663,-348.14,0.00019178,2]
[357504149,1744095032673,-216.62227441,0.00019178,2]
[357504150,1744095032684,-131.51772559,0.00019178,2]
[357504151,1744095032694,-483.20800929,0.00019179,2]
[357504155,1744095033227,-374.51199071,0.00019179,2]
[357504156,1744095033249,-200.0,0.00019211,7]
[357504157,1744095033271,-478.2,0.00019256,2]
[357504158,1744095033281,-429.73921028,0.00019269,2]
[357504159,1744095033294,-382.23193864,0.00019269,2]
[357504160,1744095033307,-6329.40885108,0.00019269,2]
[357504161,1744095033317,-5311.82,0.00019372,2]
[357504162,1744095033327,-250.0,0.00019509,2]
[357504163,1744095033337,-348.14,0.00019678,2]
[357504164,1744095033347,-755.647,0.0001978,2]
[357504165,1744095033359,-44395.56972071,0.00019781,2]
[357504166,1744095033369,-1000.0,0.00019797,2]
[357504167,1744095033378,-228.67697072,0.00019899,2]
[357504168,1744095033388,-368.7964,0.000199,2]
[357504169,1744095033398,-1822.7187,0.000199,2]
[357504170,1744095033407,-163.49443734,0.000199,2]
[357504171,1744095033417,-18377.57506653,0.000199,2]
[357504172,1744095033426,-10222.24997763,0.000199,2]
[357504173,1744095033436,-241.16040065,0.000199,2]
[357504174,1744095033445,-150.8020061,0.000199,2]
[357504175,1744095033455,-182.30993347,0.000199,2]
[357504176,1744095033464,-226.03265244,0.000199,2]
[357504177,1744095033474,-995.0042068,0.000199,2]
[357504178,1744095033484,-975.84,0.00019969,2]
[357504179,1744095033493,-305.25297986,0.00019973,2]
[357504180,1744095033503,-396.11337927,0.00019973,2]
[357504181,1744095033512,-500.0,0.00019973,2]
[357504182,1744095033522,-377.90996779,0.00019973,2]
[357504183,1744095033531,-500.0,0.00019973,2]
[357504184,1744095033540,-503.96069253,0.00019973,2]
[357504185,1744095033550,-500.0,0.00019973,2]
[357504186,1744095033560,-362.70993245,0.00019973,2]
[357504187,1744095033569,-478.31365014,0.00019973,2]
[357504188,1744095033579,-5928.11691247,0.0001999,2]
[357504189,1744095033588,-294.9994841,0.0001999,2]
[357504190,1744095033597,-562.78860136,0.00019999,2]
[357504191,1744095033607,-562.78860136,0.00019999,2]
[357504192,1744095033616,-562.78860136,0.00019999,2]
[357504193,1744095033626,-562.78860136,0.00019999,2]
[357504194,1744095033635,-562.78860136,0.00019999,2]
[357504195,1744095033644,-562.78860136,0.00019999,2]
[357504196,1744095033654,-562.78860136,0.00019999,2]
[357504197,1744095033663,-562.78860136,0.00019999,2]
[357504198,1744095033673,-562.78860136,0.00019999,2]
[357504199,1744095033682,-562.78860136,0.00019999,2]
[357504200,1744095033692,-562.78860136,0.00019999,2]
[357504201,1744095033701,-562.78860136,0.00019999,2]
[357504202,1744095033710,-562.78860136,0.00019999,2]
[357504203,1744095033720,-562.78860136,0.00019999,2]
[357504204,1744095033730,-562.78860136,0.00019999,2]
[357504205,1744095033739,-562.78860136,0.00019999,2]
[357504206,1744095033749,-562.78860136,0.00019999,2]
[357504207,1744095033758,-182.3226114,0.00019999,2]
[357504209,1744095038676,-425.48907806,0.00019999,2]
[357504210,1744095038686,-74.51092194,0.00019999,2]
[357504211,1744095038785,-533.30076752,0.00019999,2]
[357504212,1744095038795,-607.81168946,0.00019999,2]
[357504213,1744095038804,-607.81168946,0.00019999,2]
[357504214,1744095038814,-607.81168946,0.00019999,2]
[357504215,1744095038823,-607.81168946,0.00019999,2]
[357504217,1744095038832,-607.81168946,0.00019999,2]
[357504219,1744095038841,-607.81168946,0.00019999,2]
[357504221,1744095038850,-607.81168946,0.00019999,2]
[357504223,1744095038859,-673.26833296,0.00019999,2]
[357504225,1744095038868,-1581.0,0.0002,2]
[357504227,1744095038878,-393452.54511272,0.0002,2]
[357504399,1744095040623,-558.89350208,0.0002,2]
[357504424,1744095040850,-1560.84957762,0.0002,2]
[357504442,1744095041015,-660.0,0.0002,2]
[357504708,1744095043530,-1118105.13363252,0.0002,2]
[357505013,1744095046867,-1424.0,0.0002,2]
[357505015,1744095046877,-22582.93912931,0.0002,2]
[357508387,1744096231580,-240.15,0.00016712,2]
[357508388,1744096231590,-1386.60619156,0.00018744,2]
[357508389,1744096231617,-1737.01633996,0.00018744,2]
[357508390,1744096231629,-540.78774977,0.00018744,2]
[357508391,1744096231745,-601.54859924,0.00018744,2]